[Event "Belgrade Spring Open 2021"]
[Site "Belgrade"]
[Date "2021.04.08"]
[Round "8.9"]
[White "Todorovic, Goran M"]
[Black "Pasti, Aron"]
[Result "0-1"]
[ECO "B47"]
[WhiteElo "2406"]
[BlackElo "2231"]
[Annotator "NA"]
[PlyCount "77"]
[EventDate "2021.04.02"]
[EventType "swiss"]
[EventCountry "SRB"]
[SourceTitle "playchess.com"]
[Source "ChessBase"]
[SourceQuality "1"]
[TimeControl "5400+30"]

1. e4 {[%emt 0:00:00]} c5 {[%emt 0:00:00]} 2. Nf3 {[%emt 0:00:00]} e6 {[%emt 0:00:00]} 3. d4 {[%emt 0:00:00]} cxd4 {[%emt 0:00:00]} 4. Nxd4 {[%emt 0:00:00]} Nc6 {[%emt 0:00:04]} 5. Nc3 {[%emt 0:00:45]} Qc7 {[%emt 0:00:08]} 6. Qd3 {[%emt 0:00:20]} Nxd4 {[%emt 0:03:02]} 7. Qxd4 {[%emt 0:00:25]} a6 {[%emt 0:03:04]} 8. Be3 {[%emt 0:00:09]} b5 {[%emt 0:14:25]} 9. Be2 {[%emt 0:00:44]} Bb7 {[%emt 0:03:37]} 10. O-O {[%emt 0:01:18]} Nf6 {[%emt 0:08:34]} 11. a3 {[%emt 0:25:39]} Rc8 {[%emt 0:11:41]} 12. f4 {[%emt 0:07:49]} d5 {[%emt 0:04:42]} 13. e5 {[%emt 0:04:05]} Nd7 {[%emt 0:03:27]} 14. Kh1 {[%emt 0:04:15]} Bc5 {[%emt 0:00:47]} 15. Qd3 {[%emt 0:00:12]} O-O {[%emt 0:13:54]} 16. Rad1 {[%emt 0:52:19]} f6 {[%emt 0:02:35]} 17. Bxc5 {[%emt 0:00:00]} Nxc5 {[%emt 0:05:45]} 18. Qd4 {[%emt 0:00:00]} Ne4 {[%emt 0:04:09]} 19. Nxe4 {[%emt 0:00:00]} dxe4 {[%emt 0:01:16]} 20. exf6 {[%emt 0:00:00]} Rxf6 {[%emt 0:03:49]} 21. c3 {[%emt 0:00:00]} Rcf8 {[%emt 0:01:47]} 22. Qe5 {[%emt 0:00:00]} Qxe5 {[%emt 0:02:57]} 23. fxe5 {[%emt 0:00:00]} Rf2 {[%emt 0:02:33]} 24. Rxf2 {[%emt 0:00:00]} Rxf2 {[%emt 0:00:05]} 25. Rd8+ {[%emt 0:00:00]} Kf7 {[%emt 0:00:22]} 26. Rd7+ {[%emt 0:00:00]} Kg6 {[%emt 0:00:04]} 27. Rxb7 {[%emt 0:00:00]} Rxe2 {[%emt 0:00:09]} 28. Kg1 {[%emt 0:00:00]} e3 {[%emt 0:02:16]} 29. Kf1 {[%emt 0:00:00]} Rf2+ {[%emt 0:00:18]} 30. Ke1 {[%emt 0:00:00]} Rxg2 {[%emt 0:01:16]} 31. b3 {[%emt 0:00:26]} Rxh2 {[%emt 0:01:56]} 32. Re7 {[%emt 0:00:13]} Rb2 {[%emt 0:04:01]} 33. b4 {[%emt 0:00:08]} h5 {[%emt 0:01:07]} 34. Rxe6+ {[%emt 0:00:34]} Kf7 {[%emt 0:02:14]} 35. Rxa6 {[%emt 0:02:58]} h4 {[%emt 0:00:05]} 36. Ra7+ {[%emt 0:00:06]} Ke6 {[%emt 0:00:07]} 37. Ra6+ {[%emt 0:00:27]} Kxe5 {[%emt 0:00:14]} 38. Ra5 {[%emt 0:00:07]} h3 {[%emt 0:00:10]} 39. Rxb5+ {[%emt 0:00:05]} 0-1

[Event "Belgrade Spring Open 2021"]
[Site "Belgrade"]
[Date "2021.04.08"]
[Round "8.10"]
[White "Lazic, Ljubisa"]
[Black "Kaasen, Tor Fredrik"]
[Result "0-1"]
[ECO "A48"]
[WhiteElo "2175"]
[BlackElo "2397"]
[Annotator "NA"]
[PlyCount "73"]
[EventDate "2021.04.02"]
[EventType "swiss"]
[EventCountry "SRB"]
[SourceTitle "playchess.com"]
[Source "ChessBase"]
[SourceQuality "1"]
[TimeControl "5400+30"]

1. d4 {[%emt 0:00:00]} Nf6 {[%emt 0:11:19]} 2. Nf3 {[%emt 0:00:20]} g6 {[%emt 0:00:47]} 3. Bf4 {[%emt 0:01:37]} Bg7 {[%emt 0:00:29]} 4. e3 {[%emt 0:00:53]} O-O {[%emt 0:00:28]} 5. h3 {[%emt 0:02:07]} d6 {[%emt 0:00:35]} 6. Bc4 {[%emt 0:00:44]} b6 {[%emt 0:00:19]} 7. O-O {[%emt 0:00:20]} Bb7 {[%emt 0:00:34]} 8. Nbd2 {[%emt 0:01:06]} Nbd7 {[%emt 0:00:47]} 9. c3 {[%emt 0:01:08]} Qe8 {[%emt 0:01:20]} 10. Qe2 {[%emt 0:05:11]} a6 {[%emt 0:02:56]} 11. Bg5 {[%emt 0:06:50]} e5 {[%emt 0:02:53]} 12. Bxf6 {[%emt 0:00:50]} Nxf6 {[%emt 0:02:37]} 13. dxe5 {[%emt 0:01:21]} dxe5 {[%emt 0:00:15]} 14. a4 {[%emt 0:00:33]} Qe7 {[%emt 0:01:31]} 15. Rfd1 {[%emt 0:00:53]} Kh8 {[%emt 0:01:23]} 16. Nf1 {[%emt 0:07:10]} e4 {[%emt 0:07:22]} 17. Ne1 {[%emt 0:01:07]} Ne8 {[%emt 0:02:28]} 18. Nc2 {[%emt 0:02:28]} a5 {[%emt 0:04:30]} 19. Qe1 {[%emt 0:09:33]} Nd6 {[%emt 0:01:32]} 20. Be2 {[%emt 0:00:05]} f5 {[%emt 0:00:59]} 21. Nd4 {[%emt 0:00:59]} Be5 {[%emt 0:05:59]} 22. Nb5 {[%emt 0:01:05]} g5 {[%emt 0:01:40]} 23. Nxd6 {[%emt 0:00:16]} Bxd6 {[%emt 0:01:12]} 24. Bc4 {[%emt 0:03:05]} Rad8 {[%emt 0:01:53]} 25. Qe2 {[%emt 0:01:35]} f4 {[%emt 0:02:31]} 26. Bd5 {[%emt 0:10:42]} c6 {[%emt 0:05:31]} 27. Bc4 {[%emt 0:03:38]} f3 {[%emt 0:01:15]} 28. Qc2 {[%emt 0:00:43]} fxg2 {[%emt 0:02:05]} 29. Kxg2 {[%emt 0:00:02]} g4 {[%emt 0:01:09]} 30. hxg4 {[%emt 0:00:51]} Bc8 {[%emt 0:01:36]} 31. Ng3 {[%emt 0:02:12]} Bxg4 {[%emt 0:00:33]} 32. Be2 {[%emt 0:00:11]} Rxf2+ {[%emt 0:04:44]} 33. Kxf2 {[%emt 0:00:19]} Qh4 {[%emt 0:00:07]} 34. Rxd6 {[%emt 0:01:15]} Qh2+ {[%emt 0:00:28]} 35. Kf1 {[%emt 0:03:19]} Bh3+ {[%emt 0:00:16]} 36. Ke1 {[%emt 0:00:01]} Qxg3+ {[%emt 0:00:13]} 37. Kd2 {[%emt 0:00:04]} 0-1

[Event "Belgrade Spring Open 2021"]
[Site "Belgrade"]
[Date "2021.04.09"]
[Round "9.5"]
[White "Kaasen, Tor Fredrik"]
[Black "Milanovic, Slavisa"]
[Result "1/2-1/2"]
[ECO "C18"]
[WhiteElo "2397"]
[BlackElo "2301"]
[Annotator "NA"]
[PlyCount "74"]
[EventDate "2021.04.02"]
[EventType "swiss"]
[EventCountry "SRB"]
[SourceTitle "playchess.com"]
[Source "ChessBase"]
[SourceQuality "1"]
[TimeControl "5400+30"]

1. e4 {[%emt 0:03:46]} e6 {[%emt 0:04:29]} 2. d4 {[%emt 0:00:37]} d5 {[%emt 0:00:09]} 3. Nc3 {[%emt 0:00:34]} Bb4 {[%emt 0:00:17]} 4. e5 {[%emt 0:00:52]} c5 {[%emt 0:00:20]} 5. a3 {[%emt 0:00:18]} Bxc3+ {[%emt 0:00:44]} 6. bxc3 {[%emt 0:00:09]} Ne7 {[%emt 0:00:06]} 7. h4 {[%emt 0:00:34]} Qc7 {[%emt 0:02:20]} 8. h5 {[%emt 0:01:41]} h6 {[%emt 0:00:32]} 9. Rb1 {[%emt 0:00:31]} b6 {[%emt 0:01:17]} 10. Qg4 {[%emt 0:01:33]} Nf5 {[%emt 1:24:46]} 11. Bd3 {[%emt 0:03:38]} cxd4 {[%emt 0:00:00]} 12. Nf3 {[%emt 0:02:02]} Rg8 {[%emt 0:00:00]} 13. cxd4 {[%emt 0:01:07]} Ba6 {[%emt 0:00:00]} 14. Bd2 {[%emt 0:05:48]} Bxd3 {[%emt 0:00:00]} 15. cxd3 {[%emt 0:00:08]} Qc2 {[%emt 0:00:00]} 16. O-O {[%emt 0:09:55]} Qxd3 {[%emt 0:00:00]} 17. Rbc1 {[%emt 0:01:04]} Kd7 {[%emt 0:00:00]} 18. Rc3 {[%emt 0:04:44]} Qe4 {[%emt 0:00:00]} 19. Qh3 {[%emt 0:06:15]} Ne7 {[%emt 0:00:00]} 20. Re1 {[%emt 0:06:10]} Qh7 {[%emt 0:00:00]} 21. Rec1 {[%emt 0:06:21]} Nbc6 {[%emt 0:00:00]} 22. g3 {[%emt 0:00:18]} Rac8 {[%emt 0:00:00]} 23. Qf1 {[%emt 0:00:35]} Qf5 {[%emt 0:00:00]} 24. Qb5 {[%emt 0:05:02]} Rc7 {[%emt 0:00:00]} 25. Ne1 {[%emt 0:01:32]} Rgc8 {[%emt 0:00:00]} 26. Nd3 {[%emt 0:01:25]} Kd8 {[%emt 0:00:00]} 27. Qa4 {[%emt 0:02:40]} Qxh5 {[%emt 0:00:00]} 28. Nb4 {[%emt 0:03:07]} Qe2 {[%emt 0:07:23]} 29. Nxc6+ {[%emt 0:18:47]} Rxc6 {[%emt 0:00:23]} 30. Rxc6 {[%emt 0:00:19]} Nxc6 {[%emt 0:00:19]} 31. Rxc6 {[%emt 0:01:30]} Rxc6 {[%emt 0:00:06]} 32. Qxc6 {[%emt 0:00:05]} Qxd2 {[%emt 0:00:10]} 33. Qa8+ {[%emt 0:00:17]} Ke7 {[%emt 0:00:24]} 34. Qxa7+ {[%emt 0:00:10]} Ke8 {[%emt 0:00:08]} 35. Qb8+ {[%emt 0:00:25]} Ke7 {[%emt 0:00:21]} 36. Qc7+ {[%emt 0:00:22]} Ke8 {[%emt 0:00:06]} 37. Qc8+ {[%emt 0:00:06]} Ke7 {[%emt 0:00:07]} 1/2-1/2

[Event "Belgrade Spring Open 2021"]
[Site "Belgrade"]
[Date "2021.04.09"]
[Round "9.6"]
[White "Masic, Predrag"]
[Black "Pastar, Slaven"]
[Result "1-0"]
[ECO "C01"]
[WhiteElo "2263"]
[BlackElo "2374"]
[Annotator "NA"]
[PlyCount "93"]
[EventDate "2021.04.02"]
[EventType "swiss"]
[EventCountry "SRB"]
[SourceTitle "playchess.com"]
[Source "ChessBase"]
[SourceQuality "1"]
[TimeControl "5400+30"]

1. e4 {[%emt 0:00:10]} e6 {[%emt 0:00:00]} 2. d4 {[%emt 0:04:51]} d5 {[%emt 0:00:00]} 3. exd5 {[%emt 0:00:17]} exd5 {[%emt 0:00:00]} 4. Bd3 {[%emt 0:00:15]} Bd6 {[%emt 0:00:01]} 5. Nf3 {[%emt 0:04:40]} Nc6 {[%emt 0:00:48]} 6. c3 {[%emt 0:05:07]} Nge7 {[%emt 0:00:34]} 7. Nbd2 {[%emt 0:01:26]} Bg4 {[%emt 0:00:34]} 8. h3 {[%emt 0:03:14]} Bh5 {[%emt 0:06:02]} 9. Nf1 {[%emt 0:02:41]} Qd7 {[%emt 0:02:26]} 10. Ng3 {[%emt 0:07:50]} Qe6+ {[%emt 0:02:51]} 11. Kd2 {[%emt 0:01:23]} Bg6 {[%emt 0:04:59]} 12. Re1 {[%emt 0:00:42]} Qd7 {[%emt 0:00:38]} 13. Bxg6 {[%emt 0:03:30]} hxg6 {[%emt 0:04:42]} 14. Kc2 {[%emt 0:00:53]} b5 {[%emt 0:04:51]} 15. a3 {[%emt 0:05:24]} a5 {[%emt 0:02:08]} 16. Ne5 {[%emt 0:07:26]} Bxe5 {[%emt 0:05:19]} 17. dxe5 {[%emt 0:00:02]} O-O {[%emt 0:05:33]} 18. Qg4 {[%emt 0:01:18]} Nf5 {[%emt 0:02:15]} 19. Nxf5 {[%emt 0:01:13]} gxf5 {[%emt 0:01:33]} 20. Qg3 {[%emt 0:01:06]} Ra6 {[%emt 0:04:12]} 21. Bg5 {[%emt 0:03:34]} Ne7 {[%emt 0:02:54]} 22. h4 {[%emt 0:03:46]} Kh7 {[%emt 0:06:47]} 23. Qd3 {[%emt 0:02:18]} Rg6 {[%emt 0:05:50]} 24. f4 {[%emt 0:08:03]} Rc6 {[%emt 0:04:43]} 25. Bxe7 {[%emt 0:13:56]} Qxe7 {[%emt 0:00:12]} 26. Qxd5 {[%emt 0:00:06]} Rc5 {[%emt 0:07:18]} 27. Qd3 {[%emt 0:00:42]} b4 {[%emt 0:02:29]} 28. axb4 {[%emt 0:00:45]} axb4 {[%emt 0:00:28]} 29. c4 {[%emt 0:02:08]} Rd8 {[%emt 0:08:44]} 30. Qxf5+ {[%emt 0:00:53]} Kg8 {[%emt 0:01:50]} 31. Qe4 {[%emt 0:03:55]} Qxh4 {[%emt 0:02:56]} 32. Kb3 {[%emt 0:01:10]} g6 {[%emt 0:07:33]} 33. Ra8 {[%emt 0:02:30]} Kg7 {[%emt 0:02:18]} 34. Rxd8 {[%emt 0:00:45]} Qxd8 {[%emt 0:00:03]} 35. Ra1 {[%emt 0:00:17]} f5 {[%emt 0:02:33]} 36. exf6+ {[%emt 0:03:13]} Qxf6 {[%emt 0:00:03]} 37. Rd1 {[%emt 0:00:19]} Rf5 {[%emt 0:00:54]} 38. g3 {[%emt 0:00:34]} Qf7 {[%emt 0:01:18]} 39. Qd4+ {[%emt 0:00:23]} Qf6 {[%emt 0:00:29]} 40. Qxf6+ {[%emt 0:00:19]} Kxf6 {[%emt 0:00:04]} 41. Kxb4 {[%emt 0:00:58]} Rh5 {[%emt 0:00:20]} 42. Rd5 {[%emt 0:00:19]} Rh3 {[%emt 0:00:41]} 43. Rg5 {[%emt 0:00:09]} Rh2 {[%emt 0:00:07]} 44. b3 {[%emt 0:00:21]} Rb2 {[%emt 0:00:09]} 45. Kc5 {[%emt 0:00:43]} Rxb3 {[%emt 0:00:07]} 46. Kc6 {[%emt 0:00:07]} Ke7 {[%emt 0:00:41]} 47. Kxc7 {[%emt 0:00:14]} 1-0

[Event "Belgrade Spring Open 2021"]
[Site "Belgrade"]
[Date "2021.04.09"]
[Round "9.9"]
[White "Skare, Goran"]
[Black "Milosevic, Milos"]
[Result "0-1"]
[ECO "D78"]
[WhiteElo "2233"]
[BlackElo "2334"]
[Annotator "NA"]
[PlyCount "108"]
[EventDate "2021.04.02"]
[EventType "swiss"]
[EventCountry "SRB"]
[SourceTitle "playchess.com"]
[Source "ChessBase"]
[SourceQuality "1"]
[TimeControl "5400+30"]

1. d4 {[%emt 0:00:00]} Nf6 {[%emt 0:00:00]} 2. c4 {[%emt 0:00:16]} g6 {[%emt 0:00:00]} 3. Nc3 {[%emt 0:01:21]} d5 {[%emt 0:00:00]} 4. Nf3 {[%emt 0:14:59]} Bg7 {[%emt 0:00:00]} 5. g3 {[%emt 0:00:13]} O-O {[%emt 0:00:07]} 6. Bg2 {[%emt 0:00:03]} dxc4 {[%emt 0:00:37]} 7. O-O {[%emt 0:01:48]} c6 {[%emt 0:02:47]} 8. a4 {[%emt 0:07:55]} Na6 {[%emt 0:00:50]} 9. Ne5 {[%emt 0:10:28]} Ng4 {[%emt 0:02:32]} 10. f4 {[%emt 0:09:26]} c5 {[%emt 0:47:51]} 11. e3 {[%emt 0:11:46]} cxd4 {[%emt 0:00:28]} 12. exd4 {[%emt 0:02:26]} Nf6 {[%emt 0:07:14]} 13. Kh1 {[%emt 0:08:17]} Nb4 {[%emt 0:02:18]} 14. Nxc4 {[%emt 0:04:02]} Bg4 {[%emt 0:03:12]} 15. Qd2 {[%emt 0:03:39]} Qc8 {[%emt 0:03:29]} 16. Ne5 {[%emt 0:06:25]} Bh3 {[%emt 0:00:35]} 17. Qe2 {[%emt 0:02:39]} Bxg2+ {[%emt 0:00:33]} 18. Kxg2 {[%emt 0:00:14]} Qe6 {[%emt 0:06:57]} 19. Rd1 {[%emt 0:06:01]} Rac8 {[%emt 0:00:55]} 20. Be3 {[%emt 0:04:46]} Nfd5 {[%emt 0:00:11]} 21. Nxd5 {[%emt 0:02:16]} Nxd5 {[%emt 0:02:43]} 22. Re1 {[%emt 0:00:30]} Nxe3+ {[%emt 0:06:43]} 23. Qxe3 {[%emt 0:00:16]} Rc2+ {[%emt 0:00:29]} 24. Re2 {[%emt 0:01:26]} Rfc8 {[%emt 0:00:13]} 25. Kf2 {[%emt 0:00:34]} Rxe2+ {[%emt 0:01:27]} 26. Qxe2 {[%emt 0:00:15]} Qb3 {[%emt 0:02:20]} 27. Ra3 {[%emt 0:00:39]} Qb4 {[%emt 0:00:53]} 28. Ke3 {[%emt 0:00:37]} Rd8 {[%emt 0:03:40]} 29. Rd3 {[%emt 0:00:39]} Qxa4 {[%emt 0:00:14]} 30. Nf3 {[%emt 0:00:29]} e6 {[%emt 0:01:24]} 31. Qd2 {[%emt 0:00:11]} Qb5 {[%emt 0:00:53]} 32. Rc3 {[%emt 0:00:34]} Qb6 {[%emt 0:00:23]} 33. Rc4 {[%emt 0:00:33]} Bf8 {[%emt 0:01:57]} 34. Qc3 {[%emt 0:00:07]} a5 {[%emt 0:00:49]} 35. b3 {[%emt 0:00:08]} h6 {[%emt 0:01:02]} 36. Rc7 {[%emt 0:00:32]} Bd6 {[%emt 0:01:09]} 37. Rc4 {[%emt 0:00:27]} Bb4 {[%emt 0:00:38]} 38. Qc2 {[%emt 0:00:03]} Kg7 {[%emt 0:00:20]} 39. Rc7 {[%emt 0:01:08]} Bd6 {[%emt 0:00:18]} 40. Rc4 {[%emt 0:00:14]} Qb5 {[%emt 0:00:15]} 41. Qc3 {[%emt 0:00:13]} Qd5 {[%emt 0:00:24]} 42. Qc2 {[%emt 0:01:04]} b5 {[%emt 0:00:13]} 43. Rc6 {[%emt 0:00:12]} Ra8 {[%emt 0:00:58]} 44. Rb6 {[%emt 0:00:56]} a4 {[%emt 0:00:11]} 45. Qc6 {[%emt 0:00:35]} Qxc6 {[%emt 0:01:02]} 46. Rxc6 {[%emt 0:00:02]} a3 {[%emt 0:00:24]} 47. Rc1 {[%emt 0:00:08]} a2 {[%emt 0:00:47]} 48. Ra1 {[%emt 0:00:07]} Ba3 {[%emt 0:00:45]} 49. Rxa2 {[%emt 0:01:23]} Bc1+ {[%emt 0:00:01]} 50. Rd2 {[%emt 0:00:10]} Kf6 {[%emt 0:00:41]} 51. Kd3 {[%emt 0:00:26]} Bxd2 {[%emt 0:00:05]} 52. Nxd2 {[%emt 0:00:13]} Ra2 {[%emt 0:00:29]} 53. Ne4+ {[%emt 0:00:39]} Ke7 {[%emt 0:00:17]} 54. h4 {[%emt 0:00:57]} Rg2 {[%emt 0:00:06]} 0-1

[Event "Belgrade Spring Open 2021"]
[Site "Belgrade"]
[Date "2021.04.09"]
[Round "9.10"]
[White "Draskovic, Luka"]
[Black "Kocyigit, Buse Naz"]
[Result "1-0"]
[ECO "E69"]
[WhiteElo "2472"]
[BlackElo "2103"]
[Annotator "RC"]
[PlyCount "87"]
[EventDate "2021.04.02"]
[EventType "swiss"]
[EventCountry "SRB"]
[SourceTitle "playchess.com"]
[Source "ChessBase"]
[SourceQuality "1"]
[TimeControl "5400+30"]

1. c4 {[%emt 0:00:00]} Nf6 {[%emt 0:04:04]} 2. Nc3 {[%emt 0:00:00]} g6 {[%emt 0:00:05]} 3. g3 {[%emt 0:00:05]} Bg7 {[%emt 0:00:05]} 4. Bg2 {[%emt 0:00:04]} O-O {[%emt 0:00:06]} 5. d4 {[%emt 0:00:39]} d6 {[%emt 0:00:11]} 6. Nf3 {[%emt 0:00:05]} c6 {[%emt 0:00:05]} 7. e4 {[%emt 0:00:28]} Qa5 {[%emt 0:00:12]} 8. O-O {[%emt 0:00:19]} e5 {[%emt 0:00:18]} 9. h3 {[%emt 0:00:30]} Nbd7 {[%emt 0:00:07]} 10. Qc2 {[%emt 0:01:10]} exd4 {[%emt 0:06:29]} 11. Nxd4 {[%emt 0:00:53]} Ne5 {[%emt 0:07:01]} 12. b3 {[%emt 0:01:42]} Qb6 {[%emt 0:00:06]} 13. Be3 {[%emt 0:01:54]} c5 {[%emt 0:00:37]} 14. Nde2 {[%emt 0:01:39]} Re8 {[%emt 0:05:56]} 15. Rad1 {[%emt 0:02:30]} Be6 {[%emt 0:11:25]} 16. f4 {[%emt 0:05:30]} Nc6 {[%emt 0:03:37]} 17. Rxd6 {[%emt 0:15:53]} Nd4 {[%emt 0:07:08]} 18. Nxd4 {[%emt 0:03:22]} Qxd6 {[%emt 0:00:14]} 19. e5 {[%emt 0:01:18]} Qd7 {[%emt 0:04:18]} 20. Nxe6 {[%emt 0:03:46]} Qxe6 {[%emt 0:09:08]} 21. Bxc5 {[%emt 0:01:55]} Nd7 {[%emt 0:00:50]} 22. Bf2 {[%emt 0:01:25]} Qa6 {[%emt 0:20:07]} 23. Nb5 {[%emt 0:11:46]} Rec8 {[%emt 0:01:37]} 24. Qd2 {[%emt 0:04:24]} Nf8 {[%emt 0:01:34]} 25. a4 {[%emt 0:01:57]} Rd8 {[%emt 0:03:32]} 26. Nd6 {[%emt 0:06:10]} Rd7 {[%emt 0:03:39]} 27. c5 {[%emt 0:06:05]} Rad8 {[%emt 0:02:37]} 28. Rc1 {[%emt 0:02:44]} Rc7 {[%emt 0:01:28]} 29. Bf1 {[%emt 0:03:47]} Qc6 {[%emt 0:00:23]} 30. Qe3 {[%emt 0:08:13]} Re7 {[%emt 0:02:29]} 31. Bg2 {[%emt 0:00:36]} Qa6 {[%emt 0:02:05]} 32. Qf3 {[%emt 0:01:23]} Rdd7 {[%emt 0:01:56]} 33. Qc3 {[%emt 0:01:53]} b6 {[%emt 0:00:53]} 34. Bf1 {[%emt 0:03:48]} Qa5 {[%emt 0:00:13]} 35. Qxa5 {[%emt 0:01:32]} bxa5 {[%emt 0:00:02]} 36. c6 {[%emt 0:00:16]} Rc7 {[%emt 0:00:25]} 37. Nb5 {[%emt 0:00:10]} Ne6 {[%emt 0:00:57]} 38. Nxc7 {[%emt 0:00:07]} Rxc7 {[%emt 0:00:31]} 39. Bg2 {[%emt 0:01:53]} Bf8 {[%emt 0:00:12]} 40. Bd5 {[%emt 0:00:12]} Ba3 {[%emt 0:01:22]} 41. Rc2 {[%emt 0:01:09]} Ng7 {[%emt 0:00:57]} 42. Bxa7 {[%emt 0:00:43]} Nf5 {[%emt 0:00:51]} 43. Bb6 {[%emt 0:00:11]} Rc8 {[%emt 0:00:34]} 44. c7 {[%emt 0:00:14]} 1-0